bitfinex-derivatives/quotes_ETHF0:USTF0_20241022
["timestamp","ask_amount","ask_price","bid_price","bid_amount"]
[1729585774845,0.37873,2641.8,2641.5,0.37877]
[1729585775053,0.37876,2641.7,2641.4,0.37879]
[1729585775649,0.37876,2641.7,2641.0,44.0078]
[1729585775848,5.94654,2641.8,2641.5,0.37878]
[1729585776046,0.37875,2641.7,2641.4,0.37878]
[1729585776756,0.37875,2641.7,2641.0,4.15491]
[1729585777146,0.37876,2641.7,2641.0,4.15491]
[1729585777451,0.37876,2641.6,2641.0,4.15491]
[1729585777666,0.37876,2641.6,2641.5,0.37878]
[1729585778252,0.37879,2641.5,2640.9,47.31495]
[1729585778453,0.37879,2641.5,2641.3,0.37879]
[1729585778752,0.3788,2641.3,2641.0,0.37884]
[1729585778956,2.36,2641.4,2641.0,0.37884]
[1729585779157,0.37883,2641.1,2641.0,0.37884]
[1729585779357,0.37883,2641.2,2641.0,0.37884]
[1729585779749,0.37885,2641.0,2640.9,0.37886]
[1729585779954,0.37884,2641.1,2640.6,3.2078]
[1729585780155,0.37884,2641.1,2640.9,0.37885]
[1729585780356,3.2078,2641.2,2640.6,3.2078]
[1729585780552,0.37887,2640.9,2640.6,0.37889]
[1729585780858,0.37888,2640.8,2640.6,0.37889]
[1729585781056,3.2078,2641.2,2640.4,0.37892]
[1729585781057,5.5678,2640.9,2640.4,0.37892]
[1729585781254,0.37892,2640.5,2640.3,7.62568462]
[1729585781949,2.36,2640.7,2640.3,7.24674462]
[1729585781950,0.37893,2640.4,2640.3,7.24674462]
[1729585782159,0.37893,2640.4,2640.1,0.37897]
[1729585782354,0.37895,2640.3,2640.1,0.37897]
[1729585782554,2.36,2640.5,2640.1,0.37897]
[1729585782754,0.37896,2640.3,2639.6,5.5678]
[1729585783056,3.58674,2640.4,2640.1,0.37897]
[1729585783256,3.2078,2640.4,2640.1,0.37897]
[1729585783661,3.58674,2640.4,2640.1,0.37897]
[1729585786151,0.37894,2640.4,2640.1,0.37897]
[1729585789267,5.5678,2640.5,2639.7,40.8]
[1729585789472,0.37896,2640.3,2640.0,0.37899]
[1729585790059,0.37896,2640.3,2639.7,40.8]
[1729585790060,0.37897,2640.2,2639.9,0.379]
[1729585790971,0.37899,2640.0,2639.7,0.37903]
[1729585791271,0.379,2640.0,2639.7,0.37903]
[1729585791470,2.36,2640.1,2639.7,0.37903]
[1729585791765,2.36,2640.1,2639.6,3.2078]
[1729585791971,0.37903,2639.7,2639.6,3.2078]
[1729585792571,2.36,2640.1,2639.6,3.2078]
[1729585792774,0.37903,2639.8,2639.6,3.2078]
[1729585793063,2.36,2640.1,2639.6,3.2078]
[1729585793064,0.37903,2639.7,2639.6,3.2078]
[1729585793268,0.37903,2639.8,2639.6,3.58685]
[1729585794171,2.36,2639.7,2639.2,40.8]
[1729585794374,2.73909,2639.4,2639.0,7.24967199]
[1729585794577,2.36,2639.2,2638.9,3.2078]
[1729585794866,2.36,2639.0,2638.7,40.8]
[1729585795073,0.37913,2639.1,2638.8,0.37916]
[1729585795366,2.36,2639.2,2638.8,0.37916]
[1729585795574,0.37913,2639.1,2638.8,0.37916]
[1729585795769,0.37913,2639.1,2638.8,0.37915]
[1729585796165,2.36,2639.2,2638.8,0.37916]
[1729585796364,2.73912,2639.2,2638.8,0.37916]
[1729585797278,2.36,2639.0,2638.6,40.8]
[1729585797477,2.36,2639.0,2638.7,0.37917]
[1729585797971,2.73914,2639.0,2638.7,0.37917]
[1729585798374,2.73914,2639.0,2638.6,0.37918]
[1729585798669,2.73914,2639.0,2638.7,0.37918]
[1729585798873,2.73914,2639.0,2638.6,0.37918]
[1729585799262,2.73911,2639.2,2638.8,0.37915]
[1729585799463,2.36,2639.2,2638.3,40.8]
[1729585799771,2.36,2639.2,2638.9,0.37915]
[1729585800376,5.5678,2639.0,2638.3,40.8]
[1729585800566,5.5678,2639.0,2638.7,0.37917]
[1729585800873,5.94694,2639.0,2638.7,0.37917]
[1729585801072,2.36,2638.8,2638.4,0.37922]
[1729585801269,2.36,2638.5,2637.8,3.2078]
[1729585801476,3.2078,2638.7,2637.9,0.94824]
[1729585801770,3.2078,2638.7,2638.6,0.37919]
[1729585801771,5.5678,2638.7,2638.6,0.37919]
[1729585801975,5.5678,2638.7,2638.5,0.3792]
[1729585802273,3.2078,2639.0,2638.2,2.36]
[1729585802569,3.2078,2639.0,2638.4,5.5678]
[1729585802765,3.2078,2639.0,2638.9,0.37915]
[1729585803575,3.2078,2639.0,2638.8,0.37916]
[1729585803780,2.36,2638.9,2638.7,0.37917]
[1729585804273,2.36,2638.9,2638.6,0.37918]
[1729585804469,2.36,2638.9,2638.7,0.37918]
[1729585804669,2.36,2638.9,2638.0,44.10819]
[1729585804670,2.36,2638.9,2638.0,44.0078]
[1729585804869,2.36,2638.6,2638.5,0.3792]
[1729585805071,2.36,2638.6,2638.4,0.37922]
[1729585805369,2.36,2638.6,2638.0,44.0078]
[1729585805575,2.36,2638.6,2638.5,0.37921]
[1729585807161,2.73917,2638.8,2638.5,0.3792]
[1729585807761,2.36,2638.8,2638.7,0.37918]
[1729585808570,5.5678,2639.0,2638.9,0.37915]
[1729585808764,3.2078,2639.0,2638.9,0.37915]
[1729585808969,2.36,2639.2,2639.1,0.37912]
[1729585809371,2.36,2639.5,2639.4,0.37906]
[1729585809869,3.2078,2640.0,2639.9,0.37901]
[1729585810376,5.5678,2640.0,2639.4,3.2078]
[1729585810565,5.5678,2640.0,2639.5,0.37905]
[1729585810566,2.36,2639.6,2639.5,0.37905]
[1729585810979,2.36,2639.6,2639.4,0.37907]
[1729585811272,2.36,2639.6,2639.2,40.8]
[1729585811273,2.36,2639.6,2639.5,0.37906]
[1729585814170,3.2078,2640.0,2639.5,0.37906]
[1729585814171,3.58679,2640.0,2639.7,0.37902]
[1729585814368,5.5678,2640.0,2639.9,0.37901]
[1729585814768,5.5678,2640.0,2639.3,0.94772]
[1729585814769,5.5678,2640.0,2639.8,0.37901]
[1729585815270,5.5678,2640.0,2639.9,0.37901]
[1729585816173,3.2078,2640.0,2639.9,0.37901]
[1729585816677,2.36,2640.2,2639.9,3.788]
[1729585816871,2.36,2640.2,2639.7,4.15537]
[1729585816872,2.36,2640.2,2640.1,0.37898]
[1729585817081,5.5678,2640.4,2640.3,0.37895]
[1729585818167,3.2078,2640.4,2640.3,0.37895]
[1729585818369,3.2078,2640.4,2640.3,4.16615]
[1729585818569,2.36,2640.6,2640.3,3.7872]
[1729585818775,2.36,2640.6,2640.5,0.37892]
[1729585821677,2.36,2640.6,2640.5,4.16612]
[1729585822184,2.36,2640.6,2640.5,0.37892]
[1729585822375,2.36,2640.9,2640.8,0.37887]
[1729585822684,2.36,2640.9,2640.3,3.2078]
[1729585822685,2.36,2640.9,2640.3,0.37894]
[1729585822882,2.36,2640.5,2640.3,0.37895]
[1729585823077,0.37896,2640.3,2640.0,0.37899]
[1729585823279,2.36,2640.3,2639.9,3.2078]
[1729585823589,2.36,2640.3,2639.2,42.89476]
[1729585823590,0.37901,2639.9,2639.6,3.58685]
[1729585823784,0.37899,2640.0,2639.7,0.37903]
[1729585823978,2.36,2640.1,2639.7,0.37903]
[1729585824186,3.58677,2640.2,2639.8,0.37901]
[1729585824477,3.58677,2640.2,2639.6,3.2078]
[1729585824478,3.2078,2640.2,2639.6,3.2078]
[1729585824682,0.37899,2640.0,2639.7,0.37903]
[1729585824883,2.36,2640.1,2639.8,0.37901]
[1729585825083,0.37897,2640.2,2639.8,0.37901]
[1729585825884,5.5678,2640.3,2639.6,3.2078]
[1729585825885,2.36,2640.3,2639.6,3.2078]
[1729585826181,2.36,2640.3,2640.1,0.37897]
[1729585826374,3.88593,2640.5,2639.6,5.5678]
[1729585826783,3.88593,2640.5,2640.1,0.37896]
[1729585827286,2.73893,2640.5,2639.6,5.5678]
[1729585827482,2.36,2640.5,2640.3,0.37894]
[1729585828085,3.2078,2640.6,2639.9,3.2078]
[1729585828281,3.2078,2640.6,2640.3,0.37894]
[1729585828282,0.37891,2640.6,2640.3,0.37894]
[1729585828588,2.36,2640.7,2639.9,3.2078]
[1729585829090,2.7389,2640.7,2640.3,0.37894]
[1729585829287,0.37891,2640.6,2640.3,0.37894]
[1729585829977,3.2078,2640.8,2640.0,0.37899]
[1729585829978,0.37895,2640.3,2640.0,0.37899]
[1729585830177,2.73899,2640.1,2639.7,0.37903]
[1729585830379,2.73898,2640.1,2639.8,0.37901]
[1729585830589,5.94677,2640.2,2639.8,0.37901]
[1729585830782,5.5678,2640.2,2640.0,0.37899]
[1729585831885,5.5678,2640.2,2639.6,3.2078]
[1729585832083,3.2078,2640.2,2639.6,3.2078]
[1729585832389,3.2078,2640.2,2640.0,0.37898]
[1729585833087,3.58676,2640.2,2639.9,0.379]
[1729585833681,3.58676,2640.2,2640.0,0.37899]
[1729585834085,3.58676,2640.2,2639.6,3.2078]
[1729585834385,3.58676,2640.2,2639.9,0.379]
[1729585837389,0.37898,2640.1,2639.8,0.37901]
[1729585837591,3.2078,2640.2,2639.6,3.2078]
[1729585837592,2.36,2640.0,2639.6,3.2078]
[1729585837896,0.379,2640.0,2639.7,0.37903]
[1729585838089,0.37898,2640.1,2639.7,0.37903]
[1729585838289,0.379,2640.0,2639.7,0.37903]
[1729585838983,0.379,2640.0,2639.6,3.2078]
[1729585838984,5.5678,2640.2,2639.6,3.2078]
[1729585839189,0.379,2640.0,2639.6,3.58684]
[1729585839393,0.37901,2639.9,2639.6,3.58684]
[1729585839693,0.37901,2639.9,2639.6,0.37904]
[1729585840389,0.37901,2639.9,2639.7,0.37903]
[1729585841985,0.37901,2639.9,2639.6,0.37904]
[1729585842585,5.5678,2640.2,2639.6,0.37904]
[1729585842790,0.37901,2639.9,2639.7,0.37903]
[1729585842989,5.5678,2640.2,2639.3,3.2078]
[1729585843195,0.37904,2639.7,2639.5,0.37906]
[1729585843792,0.37904,2639.7,2639.5,0.37905]
[1729585844487,0.37904,2639.7,2639.6,0.37905]
[1729585844994,0.37901,2639.9,2639.7,0.37903]
[1729585845491,0.37902,2639.8,2639.6,0.37904]
[1729585845692,0.37903,2639.7,2639.5,0.37905]
[1729585846096,6.51524,2640.2,2639.5,3.7888]
[1729585846398,6.51524,2640.2,2639.6,0.37904]
[1729585846600,0.37903,2639.8,2639.6,0.37904]
[1729585847311,0.37902,2639.9,2639.7,0.37903]
[1729585848299,5.5678,2640.2,2639.3,3.2078]
[1729585848500,0.379,2640.0,2639.8,0.37902]
[1729585848901,5.5678,2640.2,2639.3,4.15551]
[1729585849093,0.379,2640.0,2639.8,0.37902]
[1729585849487,0.379,2640.0,2639.6,0.37904]
[1729585849488,0.37902,2639.9,2639.6,0.37904]
[1729585849693,0.37901,2639.9,2639.3,3.2078]
[1729585849897,0.37901,2639.9,2639.7,0.37903]
[1729585850196,5.5678,2640.2,2639.3,3.2078]
[1729585850197,3.2078,2640.2,2639.6,3.2078]
[1729585850394,3.2078,2640.2,2640.1,0.37898]
[1729585850594,0.37894,2640.4,2640.1,0.37898]
[1729585851093,0.37894,2640.4,2640.2,0.37896]
[1729585851485,0.37894,2640.4,2640.1,0.37897]
[1729585851700,0.37894,2640.4,2639.7,3.30759]
[1729585851998,0.37893,2640.5,2640.2,0.37896]
[1729585852394,5.5678,2640.7,2639.7,2.36]
[1729585852588,5.5678,2640.7,2640.2,0.37896]
[1729585852589,0.37893,2640.5,2640.2,0.37896]
[1729585852992,5.5678,2640.7,2640.2,0.37896]
[1729585853300,0.37894,2640.4,2640.2,0.37896]
[1729585853603,0.37893,2640.5,2640.2,0.37896]
[1729585854001,0.37894,2640.4,2640.2,0.37896]
[1729585854198,0.37892,2640.5,2640.2,0.37896]
[1729585854393,0.37892,2640.5,2639.9,3.2078]
[1729585854594,0.37892,2640.5,2640.3,0.37895]
[1729585854804,5.5678,2640.7,2639.9,3.2078]
[1729585854994,3.2078,2640.7,2640.1,2.36]
[1729585855190,2.36,2640.9,2640.1,2.36]
[1729585855394,0.37889,2640.8,2640.5,0.37892]
[1729585855697,3.2078,2641.0,2640.3,43.16]
[1729585855902,3.2078,2641.0,2640.6,0.3789]
[1729585855903,0.37887,2640.9,2640.6,0.3789]
[1729585856604,3.58666,2641.0,2640.7,0.37889]
[1729585856805,3.58666,2641.0,2640.3,43.16]
[1729585856806,3.2078,2641.0,2640.4,0.37893]
[1729585857006,3.58665,2641.0,2640.7,0.37889]
[1729585857797,2.36,2640.8,2640.4,0.37893]
[1729585858095,2.36,2640.8,2640.2,3.2078]
[1729585858301,0.37889,2640.7,2640.5,0.37891]
[1729585858697,0.37889,2640.7,2640.5,0.37892]
[1729585858907,0.37889,2640.8,2640.6,0.3789]
[1729585859198,5.5678,2641.0,2640.2,3.2078]
[1729585859401,0.37888,2640.8,2640.6,0.3789]
[1729585859702,5.5678,2641.0,2640.8,0.37888]
[1729585859905,0.37884,2641.1,2640.9,0.37885]
[1729585860310,0.37883,2641.1,2640.8,0.37886]
[1729585860500,0.37885,2641.0,2640.8,0.37886]
[1729585860700,2.36,2641.2,2640.5,3.2078]
[1729585860901,3.2078,2641.3,2640.5,3.2078]
[1729585860902,0.37887,2640.9,2640.6,0.37889]
[1729585861203,2.73885,2641.0,2640.5,3.2078]
[1729585861510,2.73885,2641.0,2640.8,0.37887]
[1729585861806,0.37887,2640.9,2640.7,0.37888]
[1729585862008,2.36,2641.0,2640.5,3.2078]
[1729585862199,2.73886,2641.0,2640.5,3.2078]
[1729585862398,2.73886,2641.0,2640.7,0.37888]
[1729585862595,0.37886,2641.0,2640.7,0.37888]
[1729585862798,2.36,2641.2,2640.7,0.37888]
[1729585863006,0.37886,2640.9,2640.7,0.37888]
[1729585863597,2.36,2641.2,2640.2,4.15519]
[1729585863797,0.3789,2640.7,2640.5,0.37892]
[1729585864199,0.3789,2640.7,2640.2,3.2078]
[1729585864404,0.37894,2640.4,2640.2,3.58676]
[1729585864709,3.2078,2640.7,2639.9,3.2078]
[1729585864907,0.37893,2640.5,2639.9,3.2078]
[1729585865206,0.37893,2640.5,2640.3,0.37894]
[1729585866108,0.37894,2640.4,2639.9,3.2078]
[1729585866404,3.2078,2640.5,2639.9,3.2078]
[1729585866608,0.37898,2640.1,2639.9,3.2078]
[1729585866806,0.37899,2640.1,2639.9,3.2078]
[1729585867011,0.37899,2640.0,2639.9,3.2078]
[1729585867201,0.37899,2640.0,2639.6,3.2078]
[1729585867202,0.37903,2639.7,2639.6,3.2078]
[1729585867400,2.73903,2639.7,2639.6,3.2078]
[1729585867906,2.73903,2639.7,2639.3,3.2078]
[1729585867907,2.36,2639.7,2639.3,3.2078]
[1729585868104,0.37907,2639.5,2639.3,3.2078]
[1729585868302,0.37908,2639.4,2639.1,0.37911]
[1729585868502,2.36,2639.5,2639.1,0.37911]
[1729585868503,2.73907,2639.5,2639.1,0.37911]
[1729585869099,2.36,2639.5,2639.0,3.2078]
[1729585869410,2.73913,2639.1,2638.7,3.58698]
[1729585869606,2.73913,2639.1,2638.7,3.2078]
[1729585869607,0.37914,2639.0,2638.7,3.2078]
[1729585869811,2.36,2639.1,2638.7,3.2078]
[1729585870300,2.73916,2638.9,2638.7,3.2078]
[1729585870511,0.37916,2638.9,2638.7,3.2078]
[1729585870811,2.73914,2639.0,2638.7,3.2078]
[1729585871008,0.37916,2638.8,2638.7,3.2078]
[1729585871210,2.36,2639.0,2638.7,3.2078]
[1729585871211,0.37916,2638.9,2638.7,3.2078]
[1729585871406,2.36,2639.0,2638.7,3.2078]
[1729585871610,0.380922,2639.5,2638.7,3.2078]
[1729585871611,0.37909,2639.4,2638.8,0.37916]
[1729585871802,2.36,2639.0,2638.7,3.2078]
[1729585872007,0.37916,2638.9,2638.7,3.2078]
[1729585872915,2.36,2639.0,2638.7,3.58698]
[1729585873505,2.36,2639.0,2638.7,3.2078]
[1729585873506,2.73914,2639.0,2638.7,3.2078]
[1729585873715,0.37915,2638.9,2638.7,3.2078]
[1729585873914,2.73914,2639.0,2638.7,3.2078]
[1729585874213,2.73915,2639.0,2638.7,3.2078]
[1729585874405,0.37915,2638.9,2638.7,3.2078]
[1729585874805,0.37916,2638.8,2638.7,3.2078]
[1729585875020,2.73916,2638.8,2638.7,3.2078]
[1729585875220,6.52876,2638.8,2638.7,3.2078]
[1729585875515,6.1496,2638.8,2638.7,3.2078]
[1729585875904,2.73916,2638.8,2638.7,3.2078]
[1729585876307,2.36,2638.8,2638.7,3.2078]
[1729585877816,2.73916,2638.8,2638.7,3.2078]
[1729585878517,9.3574,2638.8,2638.2,3.2078]
[1729585878820,9.3574,2638.8,2638.2,3.58704]
[1729585878821,2.73922,2638.5,2638.2,3.58704]
[1729585879012,2.73922,2638.5,2638.2,3.2078]
[1729585879516,0.37922,2638.4,2638.2,3.2078]
[1729585879811,2.36,2638.5,2638.2,3.2078]
[1729585880321,2.36,2638.5,2638.3,0.37923]
[1729585880724,2.36,2638.5,2638.2,3.58704]
[1729585880913,2.73921,2638.5,2638.2,3.2078]
[1729585881111,2.36,2638.5,2638.2,3.58704]
[1729585881314,2.73921,2638.5,2638.2,3.58704]
[1729585881623,2.73921,2638.5,2638.2,3.58705]
[1729585882025,2.73921,2638.5,2638.1,0.37926]
[1729585882728,5.5678,2638.5,2638.1,0.37926]
[1729585883023,5.5678,2638.5,2637.8,2.36]
[1729585883226,5.94701,2638.5,2637.8,2.36]
[1729585883424,5.94701,2638.5,2638.1,0.37926]
[1729585884125,5.5678,2638.5,2637.8,2.36]
[1729585884315,5.94702,2638.5,2637.8,2.36]
[1729585884513,5.94702,2638.5,2638.2,0.37925]
[1729585885116,5.5678,2638.5,2637.8,2.36]
[1729585885319,2.36,2638.5,2638.3,0.37922]
[1729585886724,2.73922,2638.5,2637.9,0.37929]
[1729585887027,2.36,2638.5,2637.9,0.37929]
[1729585887325,2.36,2638.5,2638.3,0.37922]
[1729585887528,2.36,2638.7,2638.5,0.3792]
[1729585887722,2.36,2638.7,2638.0,2.36]
[1729585887723,2.73919,2638.7,2638.4,0.37922]
[1729585888819,2.73919,2638.7,2638.3,0.37922]
[1729585889126,0.37919,2638.6,2638.3,0.37923]
[1729585890322,2.73922,2638.5,2638.1,0.37926]
[1729585890524,0.37923,2638.4,2638.1,0.37926]
[1729585890730,2.73921,2638.5,2638.2,0.37925]
[1729585891822,2.73921,2638.5,2638.2,0.37924]
[1729585892223,2.36,2638.5,2637.9,3.2078]
[1729585892422,2.36,2638.5,2638.2,0.37924]
[1729585892624,2.73921,2638.5,2638.2,0.37924]
[1729585892837,3.58693,2639.1,2638.8,0.37916]
[1729585893130,3.58693,2639.1,2638.3,6.9982]
[1729585893131,5.5678,2639.1,2638.3,3.2078]
[1729585893534,5.94692,2639.1,2638.8,0.37915]
[1729585893924,5.94692,2639.1,2638.3,3.2078]
[1729585893925,5.5678,2639.1,2638.3,3.2078]
[1729585894130,0.37914,2639.0,2638.7,0.37918]
[1729585894333,5.5678,2639.1,2638.8,0.37915]
[1729585894734,5.5678,2639.1,2638.4,3.2078]
[1729585894923,1.121,2639.3,2639.2,0.37911]
[1729585894924,2.36,2639.3,2639.2,0.37911]
[1729585895228,2.36,2639.3,2638.7,4.15575]
[1729585895424,2.36,2639.5,2638.7,4.15575]
[1729585895629,2.36,2639.7,2639.6,0.37905]
[1729585896630,3.2078,2639.8,2639.6,0.37905]
[1729585896631,3.2078,2639.8,2639.7,0.37903]
[1729585897525,2.36,2640.1,2640.0,0.37899]
[1729585897526,3.2078,2640.1,2640.0,0.37899]
[1729585897834,2.36,2640.3,2639.7,3.30759]
[1729585898138,2.36,2640.3,2640.2,0.37896]
[1729585898438,2.36,2640.3,2639.9,0.379]
[1729585898730,2.36,2640.3,2640.0,0.37899]
[1729585899333,2.36,2640.3,2640.1,0.37897]
[1729585899521,2.36,2640.3,2640.2,0.37896]
[1729585899726,3.2078,2640.4,2639.6,5.5678]
[1729585899926,3.2078,2640.4,2639.7,0.94759]
[1729585900124,3.2078,2640.4,2640.2,0.37896]
[1729585900328,2.36,2640.3,2639.6,3.2078]
[1729585900532,2.36,2640.3,2640.1,0.37898]
[1729585900732,2.36,2640.3,2640.0,0.37898]
[1729585900935,2.36,2640.3,2640.1,0.37897]
[1729585901232,2.36,2640.3,2639.6,3.2078]
[1729585901233,2.73896,2640.3,2639.6,3.2078]
[1729585901435,0.37898,2640.1,2639.7,0.37903]
[1729585901640,2.36,2639.9,2639.7,0.37903]
[1729585901935,0.37903,2639.8,2639.6,3.2078]
[1729585902631,0.37903,2639.7,2639.6,3.2078]
[1729585902836,0.37903,2639.7,2637.4,4.1682]
[1729585902837,2.36,2639.7,2639.0,3.2078]
[1729585903132,2.36,2639.7,2639.2,0.3791]
[1729585903133,2.36,2639.5,2639.2,0.3791]
[1729585903940,2.73907,2639.5,2639.2,0.3791]
[1729585904132,2.36,2639.5,2639.2,0.3791]
[1729585904333,2.36,2639.5,2639.3,0.37909]
[1729585905229,0.37906,2639.6,2639.3,0.37909]
[1729585905435,0.37906,2639.5,2639.3,0.37909]
[1729585905634,2.36,2639.4,2638.8,3.2078]
[1729585905834,2.73906,2639.6,2638.8,3.2078]
[1729585906042,3.58684,2639.7,2639.4,0.37907]
[1729585906235,2.73903,2639.8,2639.4,0.37907]
[1729585907031,3.2078,2640.0,2639.7,0.37903]
[1729585907239,3.2078,2640.0,2639.5,2.36]
[1729585907434,3.2078,2640.0,2639.3,2.36]
[1729585907634,1.129,2640.4,2639.2,3.2078]
[1729585907635,5.5678,2639.7,2639.2,3.2078]
[1729585907830,2.36,2639.5,2639.2,3.2078]
[1729585908335,2.36,2639.5,2639.2,3.5869]
[1729585908543,2.36,2639.5,2639.2,3.2078]
[1729585908742,0.37905,2639.6,2639.3,0.37909]
[1729585908943,0.37905,2639.6,2639.2,3.2078]
[1729585908944,5.5678,2639.7,2639.2,3.2078]
[1729585909246,0.94738,2640.3,2639.5,0.37906]
[1729585909247,0.37902,2639.8,2639.5,0.37906]
[1729585909538,0.37903,2639.8,2639.4,0.37907]
[1729585910639,3.86801,2639.9,2639.5,0.37905]
[1729585911436,0.37902,2639.8,2639.5,0.37905]
[1729585911639,3.489,2639.9,2639.5,0.37905]
[1729585911842,3.489,2639.9,2639.2,3.2078]
[1729585912041,3.86801,2639.9,2639.6,0.37904]
[1729585912345,3.489,2639.9,2639.6,0.37904]
[1729585912545,3.86801,2639.9,2639.6,0.37904]
[1729585913434,5.94681,2639.9,2639.6,0.37904]
[1729585913940,5.5678,2639.9,2639.6,0.37904]
[1729585914145,5.94681,2639.9,2639.1,6.51558]
[1729585914343,5.94681,2639.9,2639.6,0.37905]
[1729585915338,5.5678,2639.9,2639.6,0.37905]
[1729585915540,5.94681,2639.9,2639.6,0.37905]
[1729585915945,5.94681,2639.9,2639.1,6.51558]
[1729585915946,5.5678,2639.9,2639.1,6.51558]
[1729585916146,0.37902,2639.8,2639.5,0.37906]
[1729585916448,5.5678,2639.9,2639.1,3.2078]
[1729585916643,5.5678,2639.9,2639.3,0.37908]
[1729585916849,0.37907,2639.5,2639.1,3.2078]
[1729585917445,0.37907,2639.5,2639.2,0.37911]
[1729585917644,0.37907,2639.5,2639.1,3.2078]
[1729585917850,0.37907,2639.5,2638.3,1.89619]
[1729585917851,3.2078,2639.2,2638.3,3.2078]
[1729585918143,3.2078,2639.2,2638.6,0.37919]
[1729585918144,2.36,2639.0,2638.6,0.37919]
[1729585918347,0.37916,2638.9,2638.3,3.2078]
[1729585918569,0.37917,2638.8,2638.4,0.37921]
[1729585918744,3.2078,2638.9,2638.0,46.3678]
[1729585919051,3.2078,2638.9,2638.2,2.36]
[1729585919348,3.2078,2638.9,2638.5,0.3792]
[1729585919541,0.37917,2638.8,2638.5,0.3792]
[1729585920151,0.37917,2638.8,2638.2,2.36]
[1729585920451,3.2078,2638.6,2638.4,0.37922]
[1729585920855,3.2078,2638.6,2638.5,0.37921]
[1729585921046,3.58696,2638.9,2638.5,0.37921]
[1729585921248,3.2078,2639.2,2639.0,0.37913]
[1729585921447,3.58691,2639.2,2638.9,0.37914]
[1729585921646,3.2078,2639.2,2638.7,0.37918]
[1729585921840,3.2078,2639.2,2639.1,0.37912]
[1729585922155,1.129,2639.6,2638.8,2.36]
[1729585922449,1.129,2639.6,2639.2,0.3791]
[1729585922759,2.36,2639.5,2638.7,4.15575]
[1729585922945,3.2078,2639.7,2638.9,2.36]
[1729585923145,3.2078,2639.7,2639.5,0.37905]
[1729585923442,3.2078,2639.7,2639.1,2.36]
[1729585923648,3.2078,2639.7,2639.0,3.2078]
[1729585923949,2.36,2639.5,2639.0,3.2078]
[1729585924261,2.73907,2639.5,2639.1,0.37911]
[1729585924553,2.36,2639.3,2638.7,2.36]
[1729585924747,2.36,2639.3,2639.0,0.37913]
[1729585924748,2.7391,2639.3,2639.0,0.37913]
[1729585925146,0.37911,2639.2,2638.9,0.37914]
[1729585925343,0.37911,2639.2,2638.7,40.8]
[1729585925344,0.37911,2639.2,2639.0,0.37913]
[1729585926447,0.37916,2638.9,2638.7,0.37917]
[1729585926649,3.2078,2639.1,2638.7,0.37917]
[1729585926847,0.37916,2638.9,2638.6,0.37918]
[1729585927043,0.37917,2638.8,2638.6,0.37918]
[1729585927243,6.2078,2639.1,2638.4,40.8]
[1729585927647,0.37917,2638.8,2638.6,0.37918]
[1729585928249,0.37917,2638.8,2638.4,40.8]
[1729585928652,0.3792,2638.6,2638.4,0.37921]
[1729585929455,2.36,2638.7,2638.2,3.2078]
[1729585929951,0.37914,2639.0,2638.8,0.37916]
[1729585930151,4.172,2639.1,2639.0,0.37913]
[1729585930152,3.0,2639.1,2639.0,0.37913]
[1729585930756,3.37913,2639.1,2638.8,0.37916]
[1729585931151,3.0,2639.1,2638.9,0.37914]
[1729585931351,3.37913,2639.1,2638.8,0.37915]
[1729585931753,3.37913,2639.1,2638.6,3.2078]
[1729585932052,3.37913,2639.1,2638.9,0.37915]
[1729585932260,3.0,2639.1,2638.9,0.37914]
[1729585932451,3.37913,2639.1,2638.9,0.37914]
[1729585932957,3.0,2639.1,2638.6,3.2078]
[1729585933152,3.0,2639.1,2639.0,0.37913]
[1729585938064,3.0,2639.1,2638.9,0.37914]
[1729585938361,3.0,2639.1,2638.7,40.8]
[1729585938562,3.0,2639.1,2638.9,0.37914]
[1729585938959,2.36,2639.0,2638.2,3.2078]
[1729585939265,0.3792,2638.6,2638.4,0.37922]
[1729585939764,0.37919,2638.7,2638.4,0.37922]
[1729585940060,0.37919,2638.7,2638.5,0.3792]
[1729585940460,5.5678,2638.8,2638.5,0.3792]
[1729585940661,5.94697,2638.8,2638.5,0.3792]
[1729585941361,2.73917,2638.8,2638.5,0.3792]
[1729585942068,2.36,2638.6,2638.1,40.8]
[1729585942259,0.37924,2638.3,2638.0,0.37927]
[1729585942453,2.36,2638.1,2637.2,0.98428031]
[1729585942657,2.36,2637.4,2637.3,0.37937]
[1729585942861,2.36,2637.4,2637.2,0.37939]
[1729585943067,2.36,2637.4,2637.0,3.2078]
[1729585943260,2.36,2637.2,2637.1,0.3794]
[1729585944365,3.2078,2637.6,2637.2,0.37939]
[1729585944366,3.58714,2637.6,2637.2,0.37939]
[1729585944566,3.2078,2637.6,2637.2,0.37939]
[1729585944871,3.2078,2637.6,2637.3,0.37938]
[1729585945262,2.92,2637.7,2637.5,0.37934]
[1729585945459,6.1278,2637.9,2637.7,0.37932]
[1729585946059,4.092,2638.2,2637.8,0.37931]
[1729585946263,4.092,2638.2,2637.3,3.2078]
[1729585946264,7.2998,2638.2,2637.3,3.2078]